Cogmind - Beta 11.1 @@@ ROGUE MODE // 2022.05.23 @ 17:52:15 Player: btmk16 Result: Self-destructed Performance ------------- Evolutions (1) 500 Regions Visited (2) 400 Robots Destroyed (12) 60 Value Destroyed (346) 346 Prototype IDs (0) 0 Alien Tech Used (0) 0 Bonus (0) 0 TOTAL SCORE: 1306 Bonus ------- None Cogmind --------- Core Integrity 273/400 Matter 108/300 Energy 100/100 System Corruption 0% Temperature Warm (101) Movement Rolling (80) Location -9/Materials Parts ------- > --- POWER (1) -------- (None) > --- PROPULSION (3) --- Wheel > --- UTILITY (2) ------ Small Storage Unit > --- WEAPON (3) ------- Autogun > --- INVENTORY (8) ---- Light Ion Engine Compact Wheel Heat Sink Signal Interpreter EM Pulse Gun Heavy Hammer Heavy Hammer Peak State ------------ > --- POWER ------------ Improved Ion Engine > --- PROPULSION ------- Aluminum Leg Aluminum Leg Wheel > --- UTILITY ---------- Small Storage Unit Light Armor Plating > --- WEAPON ----------- Autogun Autogun Autogun > --- INVENTORY -------- Light Ion Engine Compact Wheel Heat Sink Signal Interpreter EM Pulse Gun Autogun Heavy Hammer Heavy Hammer [Rating: 14] Favorites ----------- Power Improved Ion Engine Engine Improved Ion Engine Propulsion Aluminum Leg Leg Aluminum Leg Wheel Wheel Utility Small Storage Unit Storage Small Storage Unit Protection Light Armor Plating Weapon Autogun Energy Gun EM Pulse Gun Ballistic Gun Autogun Build | -11 -10 -9 ------- Run | Scr Mat Mat Slots Evolved 2 | . . 2 Power . | . . . Propulsion 1 | . . 1 Utility . | . . . Weapon 1 | . . 1 Parts Attached 7 | . 3 4 Power 1 | . 1 . Engine 1 | . 1 . Core . | . . . Reactor . | . . . Propulsion 1 | . . 1 Treads . | . . . Leg . | . . . Wheel 1 | . . 1 Hover . | . . . Flight . | . . . Utility 1 | . . 1 Device . | . . . Storage . | . . . Processor . | . . . Hackware . | . . . Protection 1 | . . 1 Artifact . | . . . Weapon 4 | . 2 2 Energy Gun . | . . . Energy Cannon . | . . . Ballistic Gun 4 | . 2 2 Ballistic Cannon . | . . . Launcher . | . . . Special Weapon . | . . . Impact Weapon . | . . . Slashing Weapon . | . . . Piercing Weapon . | . . . Special Melee Weapon . | . . . Unidentified Prototypes . | . . . Parts Lost 7 | . . 7 Power 1 | . . 1 Propulsion 2 | . . 2 Utility 1 | . . 1 Weapon 3 | . . 3 Highest Loss Streak 7 | . . 7 To Critical Strikes . | . . . Average Slot Usage (%) 86 | . 84 87 Engine 10 | . 14 9 Leg 22 | . 28 19 Wheel 6 | . . 11 Storage 12 | . 14 11 Protection 3 | . . 4 Ballistic Gun 29 | . 24 31 Naked Turns . | . . . Heaviest Build 24 | 11 18 24 Greatest Support 20 | 20 20 20 Greatest Overweight (x) 2 | . . 2 Average Overweight (x) 1 | . . 1 Largest Inventory Capacity 8 | . 8 8 Average Capacity 8 | . 8 8 Most Carried 8 | . 8 8 Average Carried 7 | . 7 7 Final Capacity 8 | 8 8 8 Final Carried 8 | 6 8 7 Class Distribution -------------------- 55% | Mutant 32% | Gunner 12% | Tank Dominant Class ---------------- Mutant | -10/Materials Gunner | -9/Materials Resources | -11 -10 -9 ----------- Run | Scr Mat Mat Matter Collected 353 | 200 46 107 Remotely . | . . . Salvage Created 485 | . 83 402 Parts 31 | . 5 26 Haulers Intercepted . | . . . Recyclers Shooed 1 | . . 1 Parts Field Recycled . | . . . Retrieved Matter . | . . . Parts Self-Destructed . | . . . Prevented . | . . . Kills | -11 -10 -9 ------- Run | Scr Mat Mat Combat Hostiles Destroyed 9 | . 2 7 Guns 9 | . 2 7 Classes Destroyed 6 | . 1 5 Worker 1 | . . 1 Tunneler 1 | . . 1 Recycler 1 | . . 1 Grunt 7 | . 2 5 Brawler 1 | . . 1 Sentry 1 | . . 1 Best Kill Streak 6 | . 2 6 Combat Bots Only 3 | . 2 3 Max Kills in Single Turn 1 | . 1 1 Gunslinging . | . . . Exploded . | . . . Melee . | . . . Uniques/NPCs Destroyed . | . . . Combat | -11 -10 -9 -------- Run | Scr Mat Mat Damage Taken 996 | . 22 974 Core 139 | . 12 127 Absorbed by Shields . | . . . Core Remaining (%) 97 | 100 95 . Volleys Fired 35 | . 2 33 Largest 3 | . 2 3 Hottest 69 | . 46 69 Shots Fired 79 | . 4 75 Gun 79 | . 4 75 Cannon . | . . . Launcher . | . . . Special . | . . . Kinetic 79 | . 4 75 Thermal . | . . . Explosive . | . . . Electromagnetic . | . . . Robot Hit Streak 7 | . 3 7 Robot Miss Streak 3 | . . 3 Penetration Max . | . . . Secondary Targets 3 | . . 3 Max Gunslinging Chain 1 | . . 1 Shots Hit Robots 51 | . 3 48 Core Hits 20 | . 2 18 Critical Kills . | . . . Critical Parts Destroyed 1 | . . 1 Critical Strikes 1 | . . 1 Destroy 1 | . . 1 Melee Attacks . | . . . Impact . | . . . Slashing . | . . . Piercing . | . . . Sneak Attacks . | . . . Combat Hostiles . | . . . Follow-up Attacks . | . . . Damage Inflicted 844 | . 53 791 Guns 817 | . 53 764 Cannons . | . . . Explosions . | . . . Melee . | . . . Ramming 27 | . . 27 Kinetic 817 | . 53 764 Thermal . | . . . Explosive . | . . . Electromagnetic . | . . . Impact . | . . . Slashing . | . . . Piercing . | . . . Highest Corruption 2 | . 2 . Average Corruption 2 | . 2 . Corruption Purged . | . . . Corruption Blocked . | . . . Overload Shots . | . . . Overflow Damage . | . . . Projectiles . | . . . Explosions . | . . . Melee . | . . . Knockbacks . | . . . Impact . | . . . Kinetic . | . . . Secondary . | . . . Self-Inflicted Damage 13 | . . 13 Shots . | . . . Rammed 2 | . . 2 Targets Rammed 2 | . . 2 Kicked . | . . . Crushed . | . . . Highest Temperature 338 | . 14 338 Average Temperature 141 | . 7 146 Received Heat Transfer 615 | . 12 603 Effects 2 | . . 2 Energy Bleed 2 | . . 2 Siege Activations . | . . . Robots Corrupted . | . . . Combat Hostiles . | . . . Parts Fried . | . . . Impact Corruptions . | . . . Robots Melted . | . . . Combat Hostiles . | . . . Parts Melted . | . . . Heat Transferred . | . . . Parts Sabotaged . | . . . Parts Stolen . | . . . Parts Stripped . | . . . Power Chain Reactions . | . . . Missiles Intercepted . | . . . Alert | -11 -10 -9 ------- Run | Scr Mat Mat Peak Influence 198 | . 104 198 Initial 43 | . . 43 Average 69 | . 32 91 Maximum Alert Level . | . . . Low Security (%) 100 | . 100 100 Level 1 . | . . . Level 2 . | . . . Level 3 . | . . . Level 4 . | . . . Level 5 . | . . . High Security . | . . . Max Security . | . . . Squads Dispatched 2 | . 1 1 Investigation . | . . . Extermination . | . . . Reinforcement 2 | . 1 1 Assault . | . . . Garrison . | . . . Intercept . | . . . Searches Triggered . | . . . Construction Impeded . | . . . Haulers Reinforced . | . . . Active Scanning Responses . | . . . Cargo Convoy Interrupts . | . . . Stealth | -11 -10 -9 --------- Run | Scr Mat Mat Distress Signals . | . . . Communications Jammed . | . . . Distress Signals . | . . . Times Spotted 22 | . 4 18 Peak Tracking Total 7 | . 4 7 Tactical Retreats 1 | . . 1 Traps | -11 -10 -9 ------- Run | Scr Mat Mat Traps Triggered 1 | . 1 . Indirectly . | . . . Trap Hack Attempts . | . . . Triggered . | . . . Disarmed . | . . . Reprogrammed . | . . . Reused . | . . . Traps Extracted . | . . . Installed . | . . . Triggered . | . . . Machines | -11 -10 -9 ---------- Run | Scr Mat Mat Machines Disabled . | . . . Max in Single Turn . | . . . Machines Sabotaged . | . . . Garrisons Compromised . | . . . Overloaded Fab Kills . | . . . Hacking | -11 -10 -9 --------- Run | Scr Mat Mat Machines Accessed 2 | . 1 1 Terminals 2 | . 1 1 Fabricators . | . . . Repair Stations . | . . . Recycling Units . | . . . Scanalyzers . | . . . Garrison Access . | . . . Total Hacks 13 | . 7 6 Successful 5 | . 3 2 Failed 8 | . 4 4 Catastrophic 1 | . 1 . Database Lockouts . | . . . Manual 13 | . 8 5 Terminals 13 | . 7 6 Fabricators . | . . . Repair Stations . | . . . Recycling Units . | . . . Scanalyzers . | . . . Garrison Access . | . . . Terminal Hacks 5 | . 3 2 Part Schematic 1 | . . 1 Robot Analysis 3 | . 3 . Alert Level 1 | . . 1 Fabricator Hacks . | . . . Repair Station Hacks . | . . . Recycling Unit Hacks . | . . . Scanalyzer . | . . . Garrison Access Hacks . | . . . Unauthorized Hacks . | . . . Terminals . | . . . Fabricators . | . . . Repair Stations . | . . . Recycling Units . | . . . Scanalyzers . | . . . Garrison Access . | . . . Data Cores Recovered . | . . . Used . | . . . Hacking Detections 2 | . 1 1 Full Trace Events 1 | . 1 . Feedback Events . | . . . Feedback Blocked . | . . . Robot Schematics Acquired . | . . . Robots Built . | . . . Authchips . | . . . Time . | . . . Total Robot Build Rating . | . . . Part Schematics Acquired 1 | . . 1 Parts Built . | . . . Authchips . | . . . Time . | . . . Total Part Build Rating . | . . . Parts Repaired . | . . . Time . | . . . Parts Recycled . | . . . Recycled Matter . | . . . Retrieved Matter . | . . . Retrieved Components . | . . . Parts Scanalyzed . | . . . Part Schematics Acquired . | . . . Parts Damaged . | . . . Bothacking | -11 -10 -9 ------------ Run | Scr Mat Mat Used RIF Installer . | . . . Robots Hacked . | . . . Non-combat . | . . . Combat . | . . . Robot Hacks Applied . | . . . Relay Couplers Released . | . . . Fabnet Peak Effective % . | . . . Robots Rewired . | . . . Allies Hacked . | . . . Hacks Repelled . | . . . Allies | -11 -10 -9 -------- Run | Scr Mat Mat Total Allies . | . . . Largest Group . | . . . Highest-Rated Group . | . . . Highest-Rated Ally . | . . . Total Orders . | . . . Ally Attacks . | . . . Total Damage . | . . . Kills . | . . . Allies Corrupted . | . . . Allies Melted . | . . . Intel | -11 -10 -9 ------- Run | Scr Mat Mat Robot Analysis Total 3 | . 3 . Derelict Logs Recovered . | . . . Drone Launches . | . . . Drone Recoveries . | . . . Exploration | -11 -10 -9 ------------- Run | Scr Mat Mat Turns Passed 459 | . 169 290 Spaces Moved 302 | 1 124 177 Core . | . . . Treads . | . . . Legs 127 | 1 124 2 Wheels 175 | . . 175 Hover . | . . . Flight . | . . . Fastest Speed 80 | 120 120 80 Average Speed 113 | 120 120 108 Slowest Speed 120 | 120 120 120 Overloaded Moves . | . . . Propulsion Burnouts . | . . . Robots Hopped . | . . . Cave-ins Triggered . | . . . Exploration Rate (%) 17 | 1 30 21 Regions Visited 2 Branch Regions . Pre-discovered Areas . | . . . Known Exits Taken . | . . . Unknown Exits Taken 2 | 1 1 . Scrap Searched . | . . . Spaces Dug . | . . . Terrain Destroyed . | . . . Melee . | . . . Projectile . | . . . AOE . | . . . Terrain Rammed . | . . . Walls Destroyed . | . . . Machines Disabled . | . . . Actions | -11 -10 -9 --------- Run | Scr Mat Mat Total 365 | . 143 222 Wait 8 | . 8 . Move 300 | . 123 177 Hop . | . . . Pick Up 6 | . 2 4 Fast Attach 3 | . 2 1 Attach 3 | . . 3 Detach 2 | . 2 . Swap 1 | . 1 . Drop 5 | . 3 2 Fire 35 | . 2 33 Melee . | . . . Ram 2 | . . 2 Kick . | . . . Crush . | . . . Escape Stasis . | . . . Rewire . | . . . Trap . | . . . Miscellaneous . | . . . Route ------- -11/Scrapyard -10/Materials -9/Materials History --------- Turn | Location | Event 1 | -11/Scrapyard | Discovered new exit (range 0) 1 | -11/Scrapyard | Entered Materials 149 | -10/Materials | Discovered new exit (range 12) 170 | -10/Materials | Entered another Materials area 170 | -9/Materials | Evolved 2 slots: Propulsion x1, Weapon x1 460 | -9/Materials | Self-destructed Last Messages --------------- 00440_ Aluminum Leg destroyed. 00440_ Critical hit (Burn: +37). 00440_ K-01 Serf collects debris. 00443_ Acquired 16 matter. 00444_ K-01 Serf collects debris. 00444_ Autogun destroyed. 00445_ R-06 Scavenger collects Wheel. 00447_ G-47 Trooper destroyed. 00448_ K-01 Serf collects debris. 00448_ Lgt. Armor Plating destroyed. 00449_ G-34 Mercenary destroyed. 00449_ Switching to secondary target: G-34 Mercenary. 00451_ Autogun destroyed. 00452_ K-01 Serf collects debris. 00453_ Acquired 35 matter. 00454_ Overheating: Energy bleed (-16). 00455_ K-01 Serf collects debris. 00457_ G-34 Mercenary destroyed. 00458_ K-01 Serf collects debris. 00458_ Slammed into R-06 Scavenger. Map ----- +----------------------------------------------------+ | ????????? ???????????# ???# ###########??????? | | ???????????????????????# ???# ## #??????? | | ???????????????????????# % ???# ## #??????? | | ???????????????????????# ??## ##| ]] #??????? | | ???????????????????????# #?# # ]] ##?????? | | ???????????????????????# #?# + ]! %#?????? | | ???????????????????????# #?# # ##?????? | | ???????????????????????# #?# # #??????? | | ???????????????????????# #?# # "T" #??????? | | ???????????????????????# *#?# # """ #??????? | | ???????????????????????# %#?# =###########?????? | | ???????????????????????# k/#?# =%# !!!=#?????? | | ???????????????????????# #?# !# !! =#?????? | | ???????????????????????# #?# # !! #?????? | | ???????????????????????# #?# # / #?????? | | ???????????????????????# !#?# + #?????? | | ???????????????????????# * #?# % # #?????? | | ??????????????????????## !### # #?????? | | ??????????????????????# %= = # #?????? | | ??????????????????????# [ [ ###########?????? | | ??????????????????????#=%! #???????????????? | | ??????????????????????#*% "" #???????????????? | | ??????????????????????# = """ ##???????????????? | | ??????????????????????# """ #????????????????? | | ??????????????????????# g #????????????????? | | ??????????????????????# g@ r #????????????????? | | ??????????????????????#% g%a #????????????????? | | ??????????????????????# g #????????????????? | | ????????????????????? t a #????????????????? | | ???????????????????? "Y" +????????????????? | | ??????????????????? """ga #????????????????? | | ??????????????????#+######## ##????????????????? | | ???????????????????????????# g#?????????????????? | | ???????????????????????????# #?????????????????? | | ???????????????????????????# ?????????????????? | | ????????????????????????????? ????????????????? | | ??????????????????????????????? ????????????????? | | ????????????????????????????????##???????????????? | | ?????????????????????????????????????????????????? | | ?????????????????????????????????????????????????? | | ?????????????????????????????????????????????????? | | ?????????????????????????????????????????????????? | | ?????????????????????????????????????????????????? | | ?????????????????????????????????????????????????? | | ?????????????????????????????????????????????????? | | ?????????????????????????????????????????????????? | | ?????????????????????????????????????????????????? | | ?????????????????????????????????????????????????? | | ?????????????????????????????????????????????????? | | ?????????????????????????????????????????????????? | +----------------------------------------------------+ Best States ------------- Heat Dissipation 28 Energy Generation 12 Energy Capacity 265 Matter Stores 300 Matter Capacity 300 Sight Range 16 Terrain Scan Density 10 Armor Coverage 150 Evasion (%) 55 Item Schematics ----------------- Hcp. Storage Unit | -9/Materials | Hacked Robot Schematics ------------------ None Fabricated ------------ Nothing Alien Tech Used ----------------- None Achievements -------------- None Challenges ------------ None Game ------ Seed ProtonNovaPropulsion Manual? 0 Play Time 00:06:54 Cumulative 247.5 hours Start 2022.05.23 @ 16:57:29 End 2022.05.23 @ 17:52:15 Sessions 1 Manual Loads 0 Difficulty Rogue Special Mode None Game No. 337 Rogue 337 Adventurer 0 Explorer 0 Win Type - Total 5 Types 4/0/0/1/0/0/0/0/0 Lore% 66 Gallery% 78 Achievement% 57 Wizard Run 0 Options --------- ASCII 0 Keyboard 1 Movement Vi Keybinds 0 Fullscreen 1 Font 18/SmallcapsGlow Map View 76x50 Tactical HUD 1 Map Filters NONE Filters NONE Steam 1 RUN: 68e06d7c-1cfa-4b62-adc8-7a98e1850089